Workbook

Sheet Contents
B6: Statistical Information for the Insurance Industry for the period 01.01.2020 - 30.6.2020
B8: DOMESTIC BUSINESS
B10: LIFE BUSINESS
B11: 1 | C11: L Premiums | D11: Life business Premiums per Company
B12: 2 | C12: L Premiums incl A&H | D12: Life business Premiums per Company, including A&H from Life Companies
B13: 3 | C13: L Claims | D13: Claims per category
B14: 4 | C14: L New Business | D14: Analysis of Life New Business for Individual Policies
B15: 5 | C15: L in Force Business | D15: Movements of Life Business in Force
B16: 6 | C16: L Technical Account | D16: Technical Account for Life Business
B18: NON LIFE BUSINESS
B19: 1 | C19: NL Premiums | D19: Non Life Written Premiums per Class
B20: 2 | C20: NL Claims | D20: Claims & Claims Ratios per class
B21: 3 | C21: NL Expenses | D21: Expenses & Expenses Ratios per Class
B22: 4 | C22: NL Technical Accounts | D22: Technical Account for Non Life Business
B23: 5 | C23: NL Frequencies | D23: Claim Frequencies per Class
B25: INTERNATIONAL BUSINESS
B27: 1 | C27: International Premiums | D27: International Premiums Written by member companies of IAC

Sheet L Premiums
B6: LIFE GROSS PREMIUMS
B7: Excluding A&H premiums by Life Companies
C9: Life policies Premiums | D9: Group Pension Plans Premiums | E9: TOTAL Premiums Semi Annual 2020 | F9: TOTAL Premiums Semi Annual 2019 | G9: % Change | H9: Market Share Semi Annual 2020 | I9: Market Share Semi Annual 2019
B10: ALLIANZ | C10: 4961.36 | D10: 0 | E10: =C10+D10 -> 4961.36 | F10: -93253.37 | G10: 0 | H10: 0 | I10: 0
B11: ALTIUS | C11: 9862408.327 | D11: 0 | E11: =C11+D11 -> 9862408.327 | F11: 7438501.03 | G11: =(E11-F11)/F11 -> 0.3258596438 | H11: =E11/$E$21 -> 0.04974362649 | I11: =F11/$F$21 -> 0.03933083889
B12: ETHNIKI INSURANCE | C12: 6615187.39 | D12: 0 | E12: 6615187.39 | F12: 4882693.91 | G12: 0.3548232824 | H12: 0.03336542149 | I12: 0.02581708959
B13: EUROLIFE | C13: 52984296.53 | D13: 1349311.57 | E13: 54333608.1 | F13: 47276222.78 | G13: 0.149279805 | H13: 0.2740457115 | I13: 0.2499715324
B14: HELLENIC | C14: 14485864.7 | D14: 0 | E14: 14485864.7 | F14: 15942629.73 | G14: -0.09137545405 | H14: 0.07306323356 | I14: 0.08429615038
B15: CNP CYPRIALIFE | C15: 49974937 | D15: 173387 | E15: 50148324 | F15: 45960012 | G15: 0.09112948012 | H15: 0.2529361405 | I15: =F15/$F$21 -> 0.2430121096
B16: METLIFE | C16: 13192614.28 | D16: 0 | E16: 13192614.28 | F16: 12015153.31 | G16: 0.097997998 | H16: 0.06654038805 | I16: 0.06352974304
B17: MINERVA | C17: 183159 | D17: 0 | E17: 183159 | F17: 198999 | G17: -0.07959838994 | H17: 0.0009238101468 | I17: 0.001052200917
B18: PRIME | C18: 12252034.67 | D18: 0 | E18: 12252034.67 | F18: 13403869.83 | G18: -0.08593303088 | H18: 0.06179632968 | I18: 0.07087253771
B19: UNIVERSAL LIFE | C19: 27363342.31 | D19: 437592.21 | E19: 27800934.52 | F19: 27046327.17 | G19: 0.02790054802 | H19: 0.140221258 | I19: 0.1430065993
B20: ANCORIA | C20: 2245175.371 | D20: 7140491.481 | E20: 9385666.853 | F20: 14962018.24 | G20: -0.3727004805 | H20: 0.04733905663 | I20: 0.07911119814
B21: TOTAL | C21: =SUM(C10:C20) -> 189163980.9 | D21: =SUM(D10:D20) -> 9100782.261 | E21: =SUM(E10:E20) -> 198264763.2 | F21: =SUM(F11:F20) -> 189126427 | G21: =(E21-F21)/F21 -> 0.04831866356 | H21: =C21/$C$21 -> 1 | I21: 1
B23: % Change Semi Annual 2019/20 | C23: =E21/F21-1 -> 0.04831866356
B24: % Change Semi Annual 2018/19 | C24: -0.09012911309
B26: Σημείωση:
B27: Στο Έτος 2019 δεν περιλαμβάνονται ασφάλιστρα από συμβόλαια ζωής τα οποία ήταν συνδεδεμένα με μη εξυπηρετούμενα δάνεια του Συνεργατισμού του Έτους
B28: 2018, τα οποία δεν έχουν ανανεωθεί μετά την εξαγορά του Συνεργατισμού από την Ελληνική Τράπεζα στο τέλος του 2018.
B31: Note:
B32: The Year 2019 does not include premiums from life contracts linked to non-performing loans of the Cooperative bank of the Year 2018, which have not been renewed
B33: since the acquisition of the Cooperative bank by Hellenic Bank at the end of 2018.
B38: LIFE GROSS PREMIUMS
B39: Including A&H premiums by Life Companies
C41: Life policies Premiums | D41: Group Pension Plans Premiums | E41: TOTAL Premiums Semi Annual 2020 | F41: TOTAL Premiums Semi Annual 2019 | G41: % Change | H41: Market Share Semi Annual 2020 | I41: Market Share Semi Annual 2019
B42: ALLIANZ | C42: 4961.36 | D42: 0 | E42: =D42+C42 -> 4961.36 | F42: -93253.37 | G42: =(E42-F42)/F42 -> -1.05320301 | H42: =E42/$E$53 -> 1.913874041e-05 | I42: 0
B43: ALTIUS | C43: 9862408.327 | D43: 0 | E43: =D43+C43 -> 9862408.327 | F43: 7438501.03 | G43: =(E43-F43)/F43 -> 0.3258596438 | H43: =E43/$E$53 -> 0.03804482497 | I43: =F43/$F$53 -> 0.02964981379
B44: ETHNIKI INSURANCE | C44: 6615187.39 | D44: 0 | E44: =D44+C44 -> 6615187.39 | F44: 4882693.91 | G44: 0.3548232824 | H44: 0.02551847764 | I44: 0.01946238424
B45: EUROLIFE | C45: 66053478.85 | D45: 1349311.57 | E45: 67402790.42 | F45: 59771165.85 | G45: 0.1276807046 | H45: 0.2600102611 | I45: 0.2382474547
B46: HELLENIC | C46: 14786635.7 | D46: 0 | E46: 14786635.7 | F46: 16234477.29 | G46: -0.08918313565 | H46: 0.05704032407 | I46: 0.06471051449
B47: CNP CYPRIALIFE | C47: 59381868 | D47: 173387 | E47: 59555255 | F47: 54046104 | G47: 0.1019342856 | H47: 0.2297379278 | I47: 0.2154273977
B48: METLIFE | C48: 25784666.43 | D48: 0 | E48: 25784666.43 | F48: 25211905.33 | G48: 0.02271788239 | H48: 0.0994658798 | I48: 0.1004944807
B49: MINERVA | C49: 183159 | D49: 0 | E49: 183159 | F49: 198999 | G49: -0.07959838994 | H49: 0.0007065467039 | I49: 0.0007932086412
B50: PRIME | C50: 12252034.67 | D50: 0 | E50: 12252034.67 | F50: 13403869.83 | G50: -0.08593303088 | H50: 0.04726295029 | I50: 0.05342773267
B51: UNIVERSAL LIFE | C51: 52960913.53 | D51: 437592.21 | E51: 53398505.74 | F51: 54728772.97 | G51: -0.0243065422 | H51: 0.2059879024 | I51: 0.2181485115
B52: ANCORIA | C52: 2245175.371 | D52: 7140491.481 | E52: =D52+C52 -> 9385666.853 | F52: 14962018.24 | G52: -0.3727004805 | H52: 0.03620576646 | I52: 0.05963850149
B53: TOTAL | C53: =SUM(C43:C52) -> 250125527.3 | D53: =SUM(D43:D52) -> 9100782.261 | E53: =SUM(E42:E52) -> 259231270.9 | F53: =SUM(F43:F52) -> 250878507.5 | G53: =(E53-F53)/F53 -> 0.03329405744 | H53: =C53/$C$53 -> 1 | I53: 1
B55: % Change Semi Annual 2019/20 | C55: =E53/F53-1 -> 0.03329405744
B56: % Change Semi Annual 2018/19 | C56: -0.04680744031
B58: Σημείωση:
B59: Στο Έτος 2019 δεν περιλαμβάνονται ασφάλιστρα από συμβόλαια ζωής τα οποία ήταν συνδεδεμένα με μη εξυπηρετούμενα δάνεια του Συνεργατισμού του Έτους
B60: 2018, τα οποία δεν έχουν ανανεωθεί μετά την εξαγορά του Συνεργατισμού από την Ελληνική Τράπεζα στο τέλος του 2018.
B63: Note:
B64: The Year 2019 does not include premiums from life contracts linked to non-performing loans of the Cooperative bank of the Year 2018, which have not been renewed
B65: since the acquisition of the Cooperative bank by Hellenic Bank at the end of 2018.

Sheet L Premiums incl. A&H
B5: LIFE GROSS PREMIUMS
B6: Including A&H premiums by Life Companies
C8: Semi Annual 2020 | G8: Semi Annual 2019
C9: LIFE | D9: A&H | E9: TOTAL | F9: Market Share % | G9: LIFE | H9: A&H | I9: TOTAL | J9: Market Share %
C10: € 000s | D10: € 000s | E10: € 000s | G10: € 000s | H10: € 000s | I10: € 000s
B11: ALLIANZ | C11: 4.96136 | D11: 0 | E11: =C11+D11 -> 4.96136 | F11: =E11/$E$24*100 -> 0.001785624038 | G11: -93.25337 | H11: 0 | I11: =H11+G11 -> -93.25337 | J11: =I11/$I$24*100 -> -0.0343588906
B12: ALTIUS | C12: 9862.408327 | D12: 0 | E12: =C12+D12 -> 9862.408327 | F12: =E12/$E$24*100 -> 3.549541533 | G12: 7438.50103 | H12: 0 | I12: =H12+G12 -> 7438.50103 | J12: 2.740690692
B13: ETHNIKI INSURANCE | C13: 6615.18739 | D13: 0 | E13: 6615.18739 | F13: =E13/$E$24*100 -> 2.380846707 | G13: 4882.69391 | H13: 0 | I13: 4882.69391 | J13: 1.799012153
B14: EUROLIFE | C14: 54333.6081 | D14: 13069.18232 | E14: 67402.79042 | F14: 24.25867964 | G14: 47276.22278 | H14: 12494.94307 | I14: 59771.16585 | J14: 22.02248507
B15: HELLENIC | C15: 14485.8647 | D15: 300.771 | E15: 14786.6357 | F15: 5.321801311 | G15: 15942.62973 | H15: 291.84756 | I15: 16234.47729 | J15: 5.981538568
B16: CNP CYPRIALIFE | C16: 50148.324 | D16: 9406.931 | E16: 59555.255 | F16: 21.43430328 | G16: 45960.012 | H16: 8086.092 | I16: 54046.104 | J16: 19.91310528
B17: METLIFE | C17: 13192.61428 | D17: 12592.05215 | E17: 25784.66643 | F17: 9.280060345 | G17: 12015.15331 | H17: 13196.75202 | I17: 25211.90533 | J17: 9.289241742
B18: MINERVA | C18: 183.159 | D18: 0 | E18: 183.159 | F18: 0.06592005281 | G18: 198.999 | H18: 0 | I18: 198.999 | J18: 0.0733205124
B19: PRIME | C19: 12252.03467 | D19: 0 | E19: 12252.03467 | F19: 4.40958278 | G19: 13403.86983 | H19: 0 | I19: 13403.86983 | J19: 4.938610767
B20: UNIVERSAL LIFE | C20: 27800.93452 | D20: 25597.57122 | E20: =C20+D20 -> 53398.50574 | F20: 19.21845128 | G20: 27046.32717 | H20: 27682.4458 | I20: 54728.77297 | J20: 20.16463237
B21: ANCORIA | C21: 9385.666853 | D21: 0 | E21: =C21+D21 -> 9385.666853 | F21: 3.377959339 | G21: 14962.01824 | H21: 0 | I21: 14962.01824 | J21: =I21/$I$24*100 -> 5.51270531
B22: LIFE COMPANIES | C22: =SUM(C11:C21) -> 198264.7632 | D22: =SUM(D11:D21) -> 60966.50769 | E22: =SUM(E11:E21) -> 259231.2709 | F22: =SUM(F12:F21) -> 93.29714627 | G22: =SUM(G12:G21) -> 189126.427 | H22: =SUM(H11:H21) -> 61752.08045 | I22: =H22+G22 -> 250878.5075 | J22: =SUM(J11:J21) -> 92.40098358
B23: NON LIFE COMPANIES | C23: - | D23: 18618.93129 | E23: =D23 -> 18618.93129 | F23: =E23/$E$24*100 -> 6.70106811 | G23: - | H23: 20531.21609 | I23: =H23 -> 20531.21609 | J23: =I23/I24*100 -> 7.56465753
B24: TOTAL | C24: =C22 -> 198264.7632 | D24: =D22+D23 -> 79585.43898 | E24: =C24+D24 -> 277850.2022 | F24: =SUM(F22:F23) -> 99.99821438 | G24: =G22 -> 189126.427 | H24: =H22+H23 -> 82283.29654 | I24: =G24+H24 -> 271409.7235 | J24: =J22+J23 -> 99.96564111

Sheet L Claims
B6: LIFE GROSS CLAIMS INCURRED
C8: DEATHS | E8: MATURITIES | G8: SURRENDERS | I8: OTHER | K8: TOTAL
C9: No. of claims | D9: Amount payable | E9: No. of claims | F9: Amount payable | G9: No. of claims | H9: Amount payable | I9: No. of claims | J9: Amount payable | K9: No. of claims | L9: Amount payable
B10: ALLIANZ | C10: n.a | D10: n.a | E10: n.a | F10: n.a | G10: n.a | H10: n.a | I10: n.a | J10: n.a | K10: n.a | L10: n.a
B11: ALTIUS | C11: 17 | D11: 1059025 | E11: 10 | F11: 185093.07 | G11: 101 | H11: 1504941.83 | I11: 643 | J11: 745023.22 | K11: =I11+G11+E11+C11 -> 771 | L11: 3494083.12
B12: ETHNIKI | C12: 4 | D12: 1148147 | E12: 8 | F12: 511969 | G12: 137 | H12: 2494114 | I12: 5 | J12: 59219 | K12: 154 | L12: 4213449
B13: EUROLIFE | C13: 64 | D13: 3290856.82 | E13: 377 | F13: 3572030.1 | G13: 1209 | H13: 19516591.39 | I13: 25 | J13: 500469.68 | K13: 1675 | L13: 26879947.99
B14: PRIME | C14: 11 | D14: 210355.34 | E14: 61 | F14: 536167.23 | G14: 6846 | H14: 5141485.02 | I14: 0 | J14: 2112893.68 | K14: 6918 | L14: 8000901.27
B15: CYPRIALIFE | C15: 35 | D15: 2050835 | E15: 455 | F15: 7716334 | G15: 1151 | H15: 16385902 | I15: 709 | J15: 4141618 | K15: 2350 | L15: 30294689
B16: HELLENIC | C16: 79 | D16: 3876839.74 | E16: 10 | F16: 137820.62 | G16: 44 | H16: 362042.46 | I16: 9 | J16: 636553.83 | K16: 142 | L16: 5013256.65
B17: METLIFE | C17: 13 | D17: 457130.63 | E17: 177 | F17: 6029520.03 | G17: 326 | H17: 4644167.48 | I17: 0 | J17: -2109.12 | K17: 516 | L17: 11128709.02
B18: MINERVA | C18: 1 | D18: 17087 | E18: 2 | F18: 142593.05 | G18: 16 | H18: 56359.29 | I18: 17 | J18: 7672.6 | K18: 36 | L18: 223711.94
B19: UNIVERSAL | C19: 34 | D19: 1145361.74 | E19: 410 | F19: 7491287.64 | G19: 859 | H19: 9004758.91 | I19: 10 | J19: 313425.4 | K19: 1313 | L19: =J19+H19+F19+D19 -> 17954833.69
B20: ANCORIA | C20: 0 | D20: 0 | E20: 0 | F20: 0 | G20: 611 | H20: 12865627.96 | I20: 0 | J20: 0 | K20: 611 | L20: 12865627.96
B21: TOTAL Semi Annual 2020 | C21: =SUM(C10:C20) -> 258 | D21: =SUM(D10:D20) -> 13255638.27 | E21: 1510 | F21: 26322814.74 | G21: 11300 | H21: 71975990.34 | I21: 1418 | J21: 8514766.29 | K21: 14486 | L21: 120069209.6
B22: TOTAL Semi Annual 2019 | C22: 298 | D22: 16140527.51 | E22: 1075 | F22: 18407931.11 | G22: 6587 | H22: 59916228.96 | I22: 2586 | J22: 13343516.78 | K22: =I22+G22+E22+C22 -> 10546 | L22: =J22+H22+F22+D22 -> 107808204.4
B23: % Change | C23: =C21/C22-1 -> -0.1342281879 | D23: =D21/D22-1 -> -0.1787357469 | E23: 0.4046511628 | F23: 0.4299713848 | G23: 0.7155002277 | H23: 0.2012770429 | I23: -0.4516627997 | J23: -0.3618798979 | K23: 0.3736013654 | L23: 0.1137297978

Sheet L New Business
B6: ANALYSIS OF LIFE NEW BUSINESS
B7: INDIVIDUAL POLICIES
C9: REGULAR PREMIUMS | G9: SINGLE PREMIUMS | I9: TOTAL NEW BUSINESS PREMIUMS
C10: Unit Linked | E10: Other
C11: Number of contracts | D11: Annual Premiums | E11: Number of contracts | F11: Annual Premiums | G11: Number of contracts | H11: Single Premiums
B12: ALLIANZ | C12: 15.0520105 | D12: 0 | E12: 260 | F12: 0 | G12: 0 | H12: 0 | I12: =H12+F12+D12 -> 0
B13: ALTIUS | C13: 538 | D13: 1688087.79 | E13: 263 | F13: 863444.18 | G13: 0 | H13: 306875.62 | I13: =H13+F13+D13 -> 2858407.59
B14: ETHNIKI | C14: 422 | D14: 784574.11 | E14: 190 | F14: 210685.03 | G14: 0 | H14: 1598736.86 | I14: 2593996
B15: EUROLIFE | C15: 2607 | D15: 6346226.27 | E15: 966 | F15: 489191.47 | G15: 134 | H15: 4996021 | I15: 11831438.74
B16: PRIME | C16: 652 | D16: 879411.3308 | E16: 253 | F16: 61459.58114 | G16: 3 | H16: 24000 | I16: 964870.9119
B17: CNP CYPRIALIFE | C17: 2062 | D17: 5667665 | E17: 552 | F17: 486160 | G17: 28 | H17: 3637000 | I17: 9790825
B18: HELLENIC | C18: 675 | D18: 497488.6471 | E18: 0 | F18: 0 | G18: 0 | H18: 108711.64 | I18: 606200.2871
B19: METLIFE | C19: 962 | D19: 1602197.961 | E19: 259 | F19: 134698.1968 | G19: 0 | H19: 732302.4 | I19: 2469198.558
B20: MINERVA | C20: 0 | D20: 0 | E20: 0 | F20: 0 | G20: 0 | H20: 0 | I20: 0
B21: UNIVERSAL LIFE | C21: 1221 | D21: 2944890.56 | E21: 209 | F21: 200126.79 | G21: 150 | H21: 3836807.36 | I21: 6981824.71
B22: ANCORIA | C22: 0 | D22: 0 | E22: 0 | F22: 0 | G22: 164 | H22: 2245175.371 | I22: 2245175.371
B23: TOTAL Semi Annual 2020 | C23: =SUM(C12:C22) -> 9154.05201 | D23: 20410541.67 | E23: 2952 | F23: 2445765.248 | G23: 479 | H23: 17485630.25 | I23: 40341937.17
B24: TOTAL Semi Annual 2019 | C24: 9895 | D24: 19368885.2 | E24: 5560 | F24: 3661157.41 | G24: 307 | H24: 11416921.6 | I24: 34446964.21
B25: % Change | C25: =C23/C24-1 -> -0.07488104998 | D25: =D23/D24-1 -> 0.0537798876 | E25: -0.4690647482 | F25: -0.3319693818 | G25: 0.5602605863 | H25: 0.5315538517 | I25: 0.1711318571

Sheet L In Force Business
C6: LIFE MOVEMENTS OF BUSINESS IN FORCE
D8: ALLIANZ | E8: ALTIUS | F8: ETHNIKI | G8: EUROLIFE | H8: PRIME | I8: CNP CYPRIALIFE | J8: HELLENIC | K8: METLIFE | L8: MINERVA | M8: UNIVERSAL LIFE | N8: ANCORIA | O8: Semi Annual 2020 | P8: Semi Annual 2019 | Q8: % Change
B9: INDIVIDUAL | C9: In force at start of Period
C10: Number of contracts | D10: n.a | E10: 9654 | F10: 7442 | G10: 79679 | H10: 19048 | I10: 53555 | J10: 2685 | K10: 24777 | L10: 602 | M10: 39061 | N10: 386 | O10: =SUM(D10:N10) -> 236889 | P10: 228712 | Q10: =O10/P10-1 -> 0.03575238728
C11: Annual premiums | D11: n.a | E11: 12456260.05 | F11: 9396615.82 | G11: 85609953.52 | H11: 24475629.6 | I11: 88295133 | J11: 2479715.406 | K11: 22417433.14 | L11: 393864.46 | M11: 45644743 | N11: 1436227.801 | O11: =SUM(D11:N11) -> 292605575.8 | P11: 274789592.3 | Q11: =O11/P11-1 -> 0.06483500098
C12: New Business plus Reinst & alterations
C13: Number of contracts | D13: n.a | E13: 847 | F13: 623 | G13: 3791 | H13: 1006 | I13: 2650 | J13: 675 | K13: 1362 | L13: 2 | M13: 1737 | N13: 28 | O13: =SUM(D13:N13) -> 12721 | P13: 15639 | Q13: =O13/P13-1 -> -0.18658482
C14: Annual premiums | D14: n.a | E14: 2551531.97 | F14: 905059 | G14: 6835417.74 | H14: 1358100 | I14: 6160231 | J14: 497488.6471 | K14: 1938899.442 | L14: 1550.33 | M14: 3423189.05 | N14: 808947.5702 | O14: =SUM(D14:N14) -> 24480414.75 | P14: 25383735.5 | Q14: =O14/P14-1 -> -0.03558659625
C15: Deaths and other insured events
C16: Number of contracts | D16: n.a | E16: 0 | F16: 4 | G16: 40 | H16: 10 | I16: 35 | J16: 1 | K16: 12 | L16: 0 | M16: 39 | N16: 0 | O16: =SUM(D16:N16) -> 141 | P16: 156 | Q16: =O16/P16-1 -> -0.09615384615
C17: Annual premiums | D17: n.a | E17: 0 | F17: 769 | G17: 46423.3599 | H17: 12500 | I17: 54978 | J17: 750.72 | K17: 16723.00464 | L17: 0 | M17: 28875.15 | N17: 0 | O17: =SUM(D17:N17) -> 161019.2345 | P17: 301879.0472 | Q17: =O17/P17-1 -> -0.4666101009
C18: Maturities and Surrenders
C19: Number of contracts | D19: n.a | E19: 130 | F19: 164 | G19: 1586 | H19: 888 | I19: 1606 | J19: 49 | K19: 520 | L19: 25 | M19: 1263 | N19: 9 | O19: =SUM(D19:N19) -> 6240 | P19: 6455 | Q19: =O19/P19-1 -> -0.03330751356
C20: Annual premiums | D20: n.a | E20: 1504143.34 | F20: 148772 | G20: 1886991.041 | H20: 1047017 | I20: 2172847 | J20: 75845.22 | K20: 527035.2125 | L20: 11935.46 | M20: 1302476.03 | N20: 0 | O20: =SUM(D20:N20) -> 8677062.304 | P20: 9918691.901 | Q20: =O20/P20-1 -> -0.1251807809
C21: Lapses-Expiries
C22: Number of contracts | D22: n.a | E22: 446 | F22: 113 | G22: 1081 | H22: 559 | I22: 709 | J22: 0 | K22: 380 | L22: 13 | M22: 490 | N22: 0 | O22: =SUM(D22:N22) -> 3791 | P22: 4165 | Q22: =O22/P22-1 -> -0.08979591837
C23: Annual premiums | D23: n.a | E23: 422661.2601 | F23: 72804 | G23: 2285113.489 | H23: 670800 | I23: 4817993 | J23: 0 | K23: 3122967.305 | L23: 8371.452461 | M23: 1507569.72 | N23: 0 | O23: =SUM(D23:N23) -> 12908280.23 | P23: 7019544.102 | Q23: =O23/P23-1 -> 0.8389057805
C24: In force at end of period
C25: Number of contracts | D25: n.a | E25: 9925 | F25: 7784 | G25: 80763 | H25: 18597 | I25: 53855 | J25: 3310 | K25: 25227 | L25: 566 | M25: 39006 | N25: 405 | O25: =SUM(D25:N25) -> 239438 | P25: 232773 | Q25: =O25/P25-1 -> 0.02863304593
C26: Annual premiums | D26: n.a | E26: 13080987.41 | F26: 10079329.82 | G26: 88226843.37 | H26: 24103412.6 | I26: 87409546 | J26: 2900608.113 | K26: 23617774.9 | L26: 375107.8775 | M26: 46229011.15 | N26: 2245175.371 | O26: =SUM(D26:N26) -> 298267796.6 | P26: 282672260.6 | Q26: =O26/P26-1 -> 0.05517179489
B27: GROUP | C27: In force at start of Period
C28: Number of policies | D28: n.a | E28: 53 | F28: 16 | G28: 61 | H28: 6 | I28: 172 | J28: 57 | K28: 435 | L28: 0 | M28: 87 | N28: 3393 | O28: =SUM(D28:N28) -> 4280 | P28: 2768 | Q28: =O28/P28-1 -> 0.5462427746
C29: Annual premiums | D29: n.a | E29: 2773030.125 | F29: 331132 | G29: 7304099.57 | H29: 31126.81 | I29: 6754914 | J29: 24133289.16 | K29: 1121442.21 | L29: 0 | M29: 3388977.76 | N29: 6829451.195 | O29: =SUM(D29:N29) -> 52667462.83 | P29: 66406210.93 | Q29: =O29/P29-1 -> -0.2068895049
C30: In force at end of report period
C31: Number of policies | D31: n.a | E31: 56 | F31: 16 | G31: 58 | H31: 4 | I31: 174 | J31: 57 | K31: 393 | L31: 0 | M31: 85 | N31: 3526 | O31: =SUM(D31:N31) -> 4369 | P31: 3465 | Q31: =O31/P31-1 -> 0.2608946609
C32: Annual premiums | D32: n.a | E32: 4528429.466 | F32: 277798 | G32: 7164183.75 | H32: 30614.95 | I32: 7343116 | J32: 22410970.9 | K32: 1260659.99 | L32: 0 | M32: 2181458.908 | N32: 311040.2862 | O32: =SUM(D32:N32) -> 45508272.25 | P32: 55020218.66 | Q32: =O32/P32-1 -> -0.172880927

Sheet L Technical Account
B6: LIFE TECHNICAL ACCOUNTS
C8: ALTIUS | D8: ETHNIKI | E8: EUROLIFE | F8: PRIME | G8: CNP CYPRIALFE | H8: HELLENIC | I8: METLIFE | J8: MINERVA | K8: UNIVERSAL LIFE | L8: ANCORIA | M8: Semi Annual 2020 | N8: Semi Annual 2019
B9: Premiums
B10: Gross Premiums | C10: 9862408.327 | D10: 6615187.39 | E10: 54333608.1 | F10: 12252034.67 | G10: 50148324 | H10: 23987436.02 | I10: 13192614.28 | J10: 183159 | K10: 27800934.52 | L10: 9385666.853 | M10: =SUM(C10:L10) -> 207761373.2 | N10: 200508359.8
B11: Reinsurance | C11: 2431711.614 | D11: 880444.4 | E11: 9269125.29 | F11: 1661147.47 | G11: 5757686 | H11: 5354792.32 | I11: 0 | J11: 32898 | K11: 2561599.17 | L11: 0 | M11: =SUM(C11:L11) -> 27949404.26 | N11: 26954050.14
B12: Net Premiums Earned | C12: 7430696.713 | D12: 5734742.99 | E12: 45064482.81 | F12: 10590887.2 | G12: 44390638 | H12: 18632643.7 | I12: 13192614.28 | J12: 150261 | K12: 25239335.35 | L12: 9385666.853 | M12: =SUM(C12:L12) -> 179811968.9 | N12: 160865475.1
B13: Claims
B14: Gross Claims incured | C14: 3494083.12 | D14: 4213449 | E14: 26879947.99 | F14: 8000901.27 | G14: 30294689 | H14: 5013256.65 | I14: 11128709.02 | J14: 223711.94 | K14: 17954833.69 | L14: 12865627.96 | M14: =SUM(C14:L14) -> 120069209.6 | N14: 107730102.8
B15: Reinsurers' share of Claims | C15: 1049889.572 | D15: 1070262.17 | E15: 1777388.76 | F15: 6329981.84 | G15: 1244911 | H15: 4235196.68 | I15: 99879.28 | J15: 0.94 | K15: 520468 | L15: 0 | M15: =SUM(C15:L15) -> 16327978.24 | N15: 12197662.58
B16: Net Claims Incurred | C16: 2444193.548 | D16: 3143186.83 | E16: 25102559.23 | F16: 1670919.43 | G16: 29049778 | H16: 778059.97 | I16: 11028829.74 | J16: 223711 | K16: 17434365.69 | L16: 12865627.96 | M16: =SUM(C16:L16) -> 103741231.4 | N16: 82629360.98
B17: Expenses
B18: Commissions - Acquisition | C18: 614777.2186 | D18: 470676.8532 | E18: 4446684.31 | F18: 1033673.24 | G18: 3885589 | H18: 377741.7554 | I18: 1226380.77 | J18: 0 | K18: 1723373.87 | L18: 0 | M18: =SUM(C18:L18) -> 13778897.02 | N18: 12114454.33
B19: Commissions - Renewal | C19: 433852.618 | D19: 307300.9166 | E19: 1865294.42 | F19: 813765.48 | G19: 1723319 | H19: 1031722.305 | I19: 380662.54 | J19: 8472 | K19: 539741.71 | L19: 0 | M19: 7104130.989 | N19: 7662367.345
B20: Management expenses - Acquisition | C20: 901169.4236 | D20: 576993.6663 | E20: 2016709.247 | F20: 547129.778 | G20: 2825968.05 | H20: 44591.6 | I20: 750973.7293 | J20: 0 | K20: 1267107.79 | L20: 151181.8722 | M20: 9081825.156 | N20: 9351490.073
B21: Management expenses - Renewal | C21: 521037.3216 | D21: 582793.5639 | E21: 3224858.495 | F21: 1120085.007 | G21: 3453960.95 | H21: 639527.92 | I21: 537802.6531 | J21: 39540 | K21: 1487474.362 | L21: 29788.4362 | M21: 11636868.71 | N21: 11511419.2
B22: Other Admin/Management Expenses | C22: 0 | D22: 0 | E22: 0 | F22: 0 | G22: 0 | H22: 0 | I22: 0 | J22: 0 | K22: 0 | L22: 422061.055 | M22: 422061.055 | N22: 0
B23: Reinsurance Commission | C23: 131402.6625 | D23: 330727 | E23: 1338629.29 | F23: 0 | G23: 966991 | H23: 0 | I23: -105493.83 | J23: 0 | K23: 399283.59 | L23: 0 | M23: 3061539.712 | N23: 3574079.629
B24: Net Expenses | C24: 2339433.919 | D24: 1607038 | E24: 10214917.18 | F24: 3514653.505 | G24: 10921846 | H24: 2093583.58 | I24: 3001313.522 | J24: 48012 | K24: 4618414.142 | L24: 603031.3634 | M24: =SUM(C24:L24) -> 38962243.21 | N24: 37065651.32
B25: Investment Income
B26: Investment Income for Life business | C26: 396250.8171 | D26: 573702.3 | E26: 1254205.67 | F26: 139468.06 | G26: -142787.9 | H26: -94373.56917 | I26: n.a | J26: 20770 | K26: 270391.1 | L26: 62565.6298 | M26: =SUM(C26:L26) -> 2480192.108 | N26: 4361449.525
B27: Increase (decrease) in value of Life assets other than those in internal linked funds | C27: 82316.135 | D27: -307411.63 | E27: 1744284.664 | F27: 0 | G27: 585971.1 | H27: 0 | I27: n.a | J27: 0 | K27: -39206.44297 | L27: -246231.1263 | M27: =SUM(C27:L27) -> 1819722.7 | N27: 7008897.652
B28: Increase (decrease) in value of Life assets in internal linked funds | C28: -790607.215 | D28: -1415910.29 | E28: -14965167.58 | F28: -1428152.32 | G28: -8320585.2 | H28: -94397.05 | I28: n.a | J28: -40030 | K28: -18042811.98 | L28: -4783966.81 | M28: =SUM(C28:L28) -> -49881628.45 | N28: 74563063.5
B29: Other Items
B30: Other Income | C30: 0 | D30: 4172 | E30: 2340847.72 | F30: 0 | G30: 0 | H30: 0 | I30: n.a | J30: 0 | K30: 0 | L30: 689169.4333 | M30: =SUM(C30:L30) -> 3034189.153 | N30: -249499.9191
B31: Other Expenditure | C31: -20.03 | D31: -5216 | E31: 0 | F31: 0 | G31: 0 | H31: 0 | I31: n.a | J31: 0 | K31: 0 | L31: 20202.83115 | M31: =SUM(C31:L31) -> 14966.80115 | N31: 1757079.472
B32: Underwiting Profit
B33: Underwriting Profit (before tax) | C33: 785147.3114 | D33: -127625 | E33: 6668221.455 | F33: 1447201.36 | G33: 3935614 | H33: 2281787.013 | I33: n.a | J33: 29200 | K33: -975449.9552 | L33: -58006.58391 | M33: =SUM(C33:L33) -> 13986089.6 | N33: 23321393.54
B34: Underwriting Profit (after tax) | C34: 785147.3114 | D34: -226852 | E34: 5992073.725 | F34: 1264758.93 | G34: 2754729 | H34: 2069121.473 | I34: n.a | J34: 26452.615 | K34: -1387476.34 | L34: -58006.58391 | M34: =SUM(C34:L34) -> 11219948.13 | N34: 20654338.78

Sheet NL Premiums
B6: TOTAL NON LIFE GROSS WRITTEN PREMIUMS
B7: Including A&H premiums by Life Companies
C9: A&H | D9: MOTOR | E9: MAT | F9: FIRE | G9: LIABILITY | H9: CREDIT | I9: MISC | J9: Semi Annual 2020 | K9: Semi Annual 2019 | L9: % Change | M9: MARKET SHARE Semi Annual 2020 | N9: MARKET SHARE Semi Annual 2019
B11: ALLIANZ | C11: 8300.51 | D11: 545966.01 | E11: 10428.5 | F11: 849510.12 | G11: 327154.5 | H11: 0 | I11: 0 | J11: =SUM(C11:I11) -> 1741359.64 | K11: 3250086.86 | L11: =(J11-K11)/K11 -> -0.4642113534 | M11: =J11/$J$37 -> 0.00672196834 | N11: =K11/$K$37 -> 0.01248400056
B12: ALTIUS | C12: 3711789.073 | D12: 2316518.14 | E12: 57232.71 | F12: 2529247.904 | G12: 1467617.836 | H12: 0 | I12: 0 | J12: =SUM(C12:I12) -> 10082405.66 | K12: 9653512.848 | L12: 0.04442867812 | M12: 0.0389199394 | N12: =K12/$K$37 -> 0.03708038123
B13: AIG | C13: 126195 | D13: 3943084 | E13: 383061 | F13: 3947166 | G13: 6441530 | H13: 0 | I13: 213671 | J13: 15054707 | K13: 15039676 | L13: 0.0009994231259 | M13: 0.05811393666 | N13: 0.05776932484
B14: ATLANTIC | C14: 1971723.21 | D14: 5895531.61 | E14: 125316.1227 | F14: 3090889.41 | G14: 791171.83 | H14: 11107.76 | I14: 12885 | J14: 11898624.94 | K14: 11929032.66 | L14: -0.002549051525 | M14: 0.04593087971 | N14: 0.04582094474
B15: COMMERCIAL | C15: 50306.51 | D15: 3877498.01 | E15: 28457.41 | F15: 1273842.44 | G15: 406974.3 | H15: 1991.63 | I15: 35325.81 | J15: 5674396.11 | K15: 5169960 | L15: 0.09757060209 | M15: 0.02190421216 | N15: 0.01985847957
B16: COSMOS | C16: 1481291.86 | D16: 5472236.35 | E16: 62582.99 | F16: 1180205.61 | G16: 476560.19 | H16: 0 | I16: 4211 | J16: 8677088 | K16: 9345864.47 | L16: -0.07155854572 | M16: 0.03349515487 | N16: 0.03589866434
B17: ETHNIKI GENERAL | C17: 4615805.11 | D17: 2804369 | E17: 29077 | F17: 1238940.79 | G17: 382675.06 | H17: 0 | I17: 82744.53 | J17: 9153611.49 | K17: 9873692.21 | L17: -0.07292922492 | M17: 0.03533462314 | N17: 0.0379261184
B18: EUROLIFE | C18: 13069182.32 | D18: 0 | E18: 0 | F18: 0 | G18: 0 | H18: 0 | I18: 0 | J18: 13069182.32 | K18: 12494943.07 | L18: 0.0459577324 | M18: 0.05044944638 | N18: 0.04799467921
B19: EUROSURE | C19: 119948.32 | D19: 3172632.55 | E19: 13730.25 | F19: 647070.24 | G19: 405873.88 | H19: 0 | I19: 651 | J19: 4359906.24 | K19: 4176649.17 | L19: 0.04387657726 | M19: 0.01683003961 | N19: 0.01604304525
B20: GENERAL INS. CYPRUS | C20: 803864 | D20: 6879917 | E20: 193472 | F20: 12370047 | G20: 3772505 | H20: 20170 | I20: 2246175 | J20: 26286150 | K20: 26534372.11 | L20: -0.009354738411 | M20: 0.1014693714 | N20: 0.1019219272
B21: HELLENIC | C21: 300771 | D21: 0 | E21: 0 | F21: 0 | G21: 0 | H21: 0 | I21: 0 | J21: 300771 | K21: 291847.56 | L21: 0.03057568821 | M21: 0.001161031353 | N21: 0.001121023917
B22: HYDRA | C22: 207458 | D22: 5193424 | E22: 50829 | F22: 929809 | G22: 440088 | H22: 0 | I22: 0 | J22: 6821608 | K22: 6953363 | L22: -0.01894838512 | M22: 0.02633266096 | N22: 0.02670875928
B23: KENTRIKI | C23: 52010.35 | D23: 1190379.38 | E23: 98698.17 | F23: 788476.19 | G23: 295796.25 | H23: 0 | I23: 7719.87 | J23: 2433080.21 | K23: 2400925.79 | L23: 0.0133925089 | M23: 0.009392136905 | N23: 0.009222263956
B24: CNP ASFALISTIKI | C24: 498790.74 | D24: 12310429.59 | E24: 337789.71 | F24: 8460341.52 | G24: 4180040.38 | H24: 19918.88 | I24: 359124.08 | J24: 26166434.9 | K24: 25837685.28 | L24: 0.01272364828 | M24: 0.1010072491 | N24: 0.09924586368
B25: CNP CYPRIALIFE | C25: 9406931 | D25: 0 | E25: 0 | F25: 0 | G25: 0 | H25: 0 | I25: 0 | J25: 9406931 | K25: 8086092 | L25: 0.1633470161 | M25: 0.03631248302 | N25: 0.03105971667
B26: LUMEN | C26: 1120 | D26: 545323 | E26: 5427 | F26: 300524 | G26: 217711 | H26: 0 | I26: 0 | J26: 1070105 | K26: 1199018 | L26: -0.1075154835 | M26: 0.004130802027 | N26: 0.004605581951
B27: METLIFE | C27: 12592052.15 | D27: 0 | E27: 0 | F27: 0 | G27: 0 | H27: 0 | I27: 0 | J27: 12592052.15 | K27: 13196752.02 | L27: -0.0458218711 | M27: 0.04860763621 | N27: 0.05069041742
B28: MINERVA | C28: 205738 | D28: 5214372 | E28: 9403 | F28: 544572 | G28: 436738 | H28: 0 | I28: 27228 | J28: =SUM(C28:I28) -> 6438051 | K28: 6230210 | L28: 0.03336019171 | M28: 0.02485206042 | N28: 0.02393103584
B29: PANCYPRIAN | C29: 448534 | D29: 8278263.86 | E29: 129133.54 | F29: 9075028.74 | G29: 2070944.4 | H29: 0 | I29: 53900 | J29: 20055804.54 | K29: 18234794.07 | L29: 0.09986460297 | M29: 0.07741909256 | N29: 0.07004218322
B30: PRIME | C30: 424470.81 | D30: 4095695.58 | E30: 14938.34 | F30: 830165.76 | G30: 371132.25 | H30: 0 | I30: 224947.72 | J30: =SUM(C30:I30) -> 5961350.46 | K30: 6517514.75 | L30: -0.08533379844 | M30: 0.0230119087 | N30: 0.02503461024
B31: PROGRESSIVE | C31: 18889.57 | D31: 1484857.63 | E31: 15918.17 | F31: 653551.88 | G31: 415264.79 | H31: 16057 | I31: 19661 | J31: 2624200.04 | K31: 2420037.87 | L31: 0.08436321288 | M31: 0.01012989458 | N31: 0.009295675907
B32: ROYAL CROWN | C32: 14604 | D32: 2222012 | E32: 104292 | F32: 1511207 | G32: 386993 | H32: 0 | I32: 19687 | J32: 4258795 | K32: 4387248 | L32: -0.02927871869 | M32: 0.01643973163 | N32: 0.01685198237
B33: TRUST | C33: 2866573 | D33: 9165746 | E33: 152518 | F33: 3493799 | G33: 2901111 | H33: 0 | I33: 60079 | J33: 18639826 | K33: 18787029 | L33: -0.007835352785 | M33: 0.07195315509 | N33: 0.07216338843
B34: UNIVERSAL | C34: 25597571.22 | D34: 0 | E34: 0 | F34: 0 | G34: 0 | H34: 0 | I34: 0 | J34: 25597571.22 | K34: 27682445.8 | L34: -0.07531395871 | M34: 0.09881133074 | N34: 0.1063318255
B35: YDROGIOS | C35: 973014.85 | D35: 3682900.81 | E35: 39388.04 | F35: 1719913.12 | G35: 1412194.19 | H35: 2799.56 | I35: 0 | J35: =SUM(C35:I35) -> 7830210.57 | K35: 7891457.84 | L35: -0.007761211077 | M35: 0.0302260523 | N35: 0.0303121019
B36: INTERAMERICAN | C36: 18504.38 | D36: 2669726.85 | E36: 0 | F36: 56295.86 | G36: 162.76 | H36: 0 | I36: 116107.24 | J36: =SUM(C36:I36) -> 2860797.09 | K36: 2755962.22 | L36: 0.03803929867 | M36: 0.01104320269 | N36: 0.01058600443
B37: TOTAL Semi Annual 2020 | C37: =SUM(C11:C36) -> 79585438.98 | D37: 90960883.37 | E37: 1861692.953 | F37: 55490603.58 | G37: 27600238.62 | H37: 72044.83 | I37: 3484117.25 | J37: =SUM(J11:J36) -> 259055019.6 | K37: 260340172.6 | L37: -0.004936437589 | M37: =SUM(M11:M36) -> 1 | N37: =SUM(N11:N36) -> 1
B38: TOTAL Semi Annual 2019 | C38: 82283296.54 | D38: 90053664.06 | E38: 1937570.552 | F38: 56247605.72 | G38: 26586833.29 | H38: 72533.45 | I38: 3158761.99 | J38: =SUM(C38:I38) -> 260340265.6
B39: % Change Semi Annual 2019/20 | C39: =C37/C38-1 -> -0.03278742671 | D39: 0.01007420763 | E39: -0.03916120569 | F39: -0.01345838862 | G39: 0.03811681202 | H39: -0.006736478135 | I39: 0.1030008785 | J39: -0.00493679305
B40: % Change Semi Annual 2018/19 | C40: 0.08651083488 | D40: 0.04719003354 | E40: -0.662965359 | F40: 0.02061054751 | G40: 0.1328823258 | H40: -0.06957737117 | I40: 0.05574012643 | J40: 0.06600235373
B42: Σημειώσεις:
B43: 1. Τα πιο πάνω δεδομένα αφορούν μόνο τις εργασίες των εταιρειών-μελών του ΣΑΕΚ στην εγχώρια αγορά. Οι εταιρείες-μέλη του ΣΑΕΚ αντιπροσωπεύουν περίπου το 99% των συνολικών
B44: ασφαλίστρων στην εγχώρια αγορά.
B45: 2. Σημειώνεται ότι από τον πιο πάνω πίνακα απουσιάζουν τα στοιχεία που αφορούν την εταιρεία-μέλος GAN DIRECT.
B47: Notes:
B48: 1. The above data reflects to the local insurance business by IAC member firms. IAC members firms represent approx 99% of the local GWP.
B49: 2. Please note that the above table does not include data for the member firm GAN DIRECT.
B58: TOTAL NON LIFE GROSS WRITTEN PREMIUMS
B59: Excluding A&H premiums by Life Companies
C61: A&H | D61: MOTOR | E61: MAT | F61: FIRE | G61: LIABILITY | H61: CREDIT | I61: MISC | J61: Semi Annual 2020 | K61: Semi Annual 2019 | L61: % Change | M61: MARKET SHARE Semi Annual 2020 | N61: MARKET SHARE Semi Annual 2019
B63: ALLIANZ | C63: 8300.51 | D63: 545966.01 | E63: 10428.5 | F63: 849510.12 | G63: 327154.5 | H63: 0 | I63: 0 | J63: =SUM(C63:I63) -> 1741359.64 | K63: 3250086.86 | L63: =(J63-K63)/K63 -> -0.4642113534 | M63: =J63/$J$84 -> 0.0087908159 | N63: =K63/$K$84 -> 0.01636596285
B64: ALTIUS | C64: 3711789.073 | D64: 2316518.14 | E64: 57232.71 | F64: 2529247.904 | G64: 1467617.836 | H64: 0 | I64: 0 | J64: =SUM(C64:I64) -> 10082405.66 | K64: 9653512.848 | L64: 0.04442867812 | M64: =J64/$J$84 -> 0.05089848758 | N64: =K64/$K$84 -> 0.04861071086
B65: AIG | C65: 126195 | D65: 3943084 | E65: 383061 | F65: 3947166 | G65: 6441530 | H65: 0 | I65: 213671 | J65: 15054707 | K65: 15039676 | L65: 0.0009994231259 | M65: 0.07599989952 | N65: 0.07573298476
B66: ATANTIC | C66: 1971723.21 | D66: 5895531.61 | E66: 125316.1227 | F66: 3090889.41 | G66: 791171.83 | H66: 11107.76 | I66: 12885 | J66: 11898624.94 | K66: 11929032.66 | L66: -0.002549051525 | M66: 0.06006721353 | N66: 0.06006919622
B67: COMMERCIAL | C67: 50306.51 | D67: 3877498.01 | E67: 28457.41 | F67: 1273842.44 | G67: 406974.3 | H67: 1991.63 | I67: 35325.81 | J67: 5674396.11 | K67: 5169960 | L67: 0.09757060209 | M67: 0.0286457607 | N67: 0.02603357292
B68: COSMOS | C68: 1481291.86 | D68: 5472236.35 | E68: 62582.99 | F68: 1180205.61 | G68: 476560.19 | H68: 0 | I68: 4211 | J68: 8677088 | K68: 9345864.47 | L68: -0.07155854572 | M68: 0.04380409503 | N68: 0.04706153321
B69: ETHNIKI GENERAL | C69: 4615805.11 | D69: 2804369 | E69: 29077 | F69: 1238940.79 | G69: 382675.06 | H69: 0 | I69: 82744.53 | J69: 9153611.49 | K69: 9873692.21 | L69: -0.07292922492 | M69: 0.04620970395 | N69: 0.04971943423
B70: EUROSURE | C70: 119948.32 | D70: 3172632.55 | E70: 13730.25 | F70: 647070.24 | G70: 405873.88 | H70: 0 | I70: 651 | J70: 4359906.24 | K70: 4176649.17 | L70: 0.04387657726 | M70: 0.02200988941 | N70: 0.02103171025
B71: GENERAL INS. CYPRUS | C71: 803864 | D71: 6879917 | E71: 193472 | F71: 12370047 | G71: 3772505 | H71: 20170 | I71: 2246175 | J71: 26286150 | K71: 26534372.11 | L71: -0.009354738411 | M71: 0.1326990129 | N71: 0.1336150592
B72: HYDRA | C72: 207458 | D72: 5193424 | E72: 50829 | F72: 929809 | G72: 440088 | H72: 0 | J72: 6821608 | K72: 6953363 | L72: -0.01894838512 | M72: 0.03443717122 | N72: 0.03501398129
B73: KENTRIKI | C73: 52010.35 | D73: 1190379.38 | E73: 98698.17 | F73: 788476.19 | G73: 295796.25 | H73: 0 | I73: 7719.87 | J73: 2433080.21 | K73: 2401018.79 | L73: 0.0133532566 | M73: 0.01228279311 | N73: 0.01209044127
B74: CNP ASFALISTIKI | C74: 498790.74 | D74: 12310429.59 | E74: 337789.71 | F74: 8460341.52 | G74: 4180040.38 | H74: 19918.88 | I74: 359124.08 | J74: 26166434.9 | K74: 25837685.28 | L74: 0.01272364828 | M74: 0.1320946614 | N74: 0.1301068604
B75: LUMEN | C75: 1120 | D75: 545323 | E75: 5427 | F75: 300524 | G75: 217711 | H75: 0 | I75: 0 | J75: 1070105 | K75: 1199018 | L75: -0.1075154835 | M75: 0.005402155783 | N75: 0.006037710648
B76: MINERVA | C76: 205738 | D76: 5214372 | E76: 9403 | F76: 544572 | G76: 436738 | H76: 0 | I76: 27228 | J76: 6438051 | K76: 6230210 | L76: 0.03336019171 | M76: 0.03250088023 | N76: 0.03137251088
B77: PANCYPRIAN | C77: 448534 | D77: 8278263.86 | E77: 129133.54 | F77: 9075028.74 | G77: 2070944.4 | H77: 0 | I77: 53900 | J77: 20055804.54 | K77: 18234794.07 | L77: 0.09986460297 | M77: 0.1012466818 | N77: 0.09182214972
B78: PRIME | C78: 424470.81 | D78: 4095695.58 | E78: 14938.34 | F78: 830165.76 | G78: 371132.25 | H78: 0 | I78: 224947.72 | J78: 5961350.46 | K78: 6517514.75 | L78: -0.08533379844 | M78: 0.03009437752 | N78: 0.03281924725
B79: PROGRESSIVE | C79: 18889.57 | D79: 1484857.63 | E79: 15918.17 | F79: 653551.88 | G79: 415264.79 | H79: 16057 | I79: 19661 | J79: 2624200.04 | K79: 2420037.87 | L79: 0.08436321288 | M79: 0.01324761348 | N79: 0.01218621273
B80: ROYAL CROWN | C80: 14604 | D80: 2222012 | E80: 104292 | F80: 1511207 | G80: 386993 | H80: 0 | I80: 19687 | J80: 4258795 | K80: 4387248 | L80: -0.02927871869 | M80: 0.02149945476 | N80: 0.02209219041
B81: TRUST | C81: 2866573 | D81: 9165746 | E81: 152518 | F81: 3493799 | G81: 2901111 | H81: 0 | I81: 60079 | J81: 18639826 | K81: 18787029 | L81: -0.007835352785 | M81: 0.09409847054 | N81: 0.09460295428
B82: YDROGIOS | C82: 973014.85 | D82: 3682900.81 | E82: 39388.04 | F82: 1719913.12 | G82: 1412194.19 | H82: 2799.56 | I82: 0 | J82: 7830210.57 | K82: 7891457.84 | L82: -0.007761211077 | M82: 0.03952884746 | N82: =K82/$K$84 -> 0.03973780129
B83: INTERAMERICAN | C83: 18504.38 | D83: 2669726.85 | E83: 0 | F83: 56295.86 | G83: 162.76 | H83: 0 | I83: 116107.24 | J83: 2860797.09 | K83: 2755962.22 | L83: 0.03803929867 | M83: 0.01444201414 | N83: 0.01387777535
B84: TOTAL Semi Annual 2020 | C84: =SUM(C63:C83) -> 18618931.29 | D84: 90960883.37 | E84: 1861692.953 | F84: 55490603.58 | G84: 27600238.62 | H84: 72044.83 | I84: 3484117.25 | J84: 198088511.9 | K84: =SUM(K63:K83) -> 198588185.1 | L84: -0.002516127802 | M84: =SUM(M63:M83) -> 1 | N84: =SUM(N63:N83) -> 1
B85: TOTAL Semi Annual 2019 | C85: 20531216.09 | D85: 90053664.06 | E85: 1937570.552 | F85: 56247605.72 | G85: 26586833.29 | H85: 72533.45 | I85: 3158761.99 | J85: =SUM(C85:I85) -> 198588185.1
B86: % Change Semi Annual 2019/20 | C86: =C84/C85-1 -> -0.09314035694 | D86: =D84/D85-1 -> 0.01007420763 | E86: =E84/E85-1 -> -0.03916120569 | F86: -0.01345838862 | G86: 0.03811681202 | H86: -0.006736478135 | I86: 0.1030008785 | J86: =J84/J85-1 -> -0.002516127802
B87: % Change Semi Annual 2018/19 | C87: -0.01736814113 | D87: 0.04719003354 | E87: -0.662965359 | F87: 0.02061054751 | G87: 0.1328823258 | H87: -0.06957737117 | I87: 0.05574012643 | J87: 0.04860330054
B89: Σημειώσεις:
B90: 1. Τα πιο πάνω δεδομένα αφορούν μόνο τις εργασίες των εταιρειών-μελών του ΣΑΕΚ στην εγχώρια αγορά. Οι εταιρείες-μέλη του ΣΑΕΚ αντιπροσωπεύουν περίπου το 99% των συνολικών
B91: ασφαλίστρων στην εγχώρια αγορά.
B92: 2. Σημειώνεται ότι από τον πιο πάνω πίνακα απουσιάζουν τα στοιχεία που αφορούν την εταιρεία-μέλος GAN DIRECT.
B94: Notes:
B95: 1. The above data reflects to the local insurance business by IAC member firms. IAC members firms represent approx 99% of the local GWP.
B96: 2. Please note that the above table does not include data for the member firm GAN DIRECT.

Sheet NL Claims
B6: NON LIFE GROSS CLAIMS
D8: A&H | E8: MOTOR | F8: MAT | G8: FIRE | H8: LIABILITY | I8: CREDIT | J8: MISC | K8: TOTAL
B9: GROSS CLAIMS INCURED | C9: Semi Annual 2020 | D9: 49525202.55 | E9: 47475704.12 | F9: 441532.7251 | G9: 6807377.146 | H9: 4427798.678 | I9: 6031.724381 | J9: -1103021.824 | K9: =SUM(D9:J9) -> 107580625.1
C10: Semi annual 2019 | D10: 64747563.2 | E10: 57147179.91 | F10: 237492.0662 | G10: 15023983.07 | H10: 7099480.413 | I10: 394019.3533 | J10: 669419.5403 | K10: =SUM(D10:J10) -> 145319137.5
B11: % Change | D11: =D9/D10-1 -> -0.2351032208 | E11: =E9/E10-1 -> -0.1692380237 | F11: 0.8591472642 | G11: -0.5468993067 | H11: -0.3763207417 | I11: -0.9846918068 | J11: -2.647728753 | K11: -0.2596940297
B12: GROSS PREMIUS EARNED | C12: Semi Annual 2020 | D12: 80570574.2 | E12: 86930142.82 | F12: 1738919.31 | G12: 52704653.04 | H12: 24585716.2 | I12: 75370.81219 | J12: 2848460.822 | K12: =SUM(D12:J12) -> 249453837.2
C13: Semi annual 2019 | D13: 81180686.1 | E13: 83680409.94 | F13: 2282316.096 | G13: 53162168.83 | H13: 22900547.07 | I13: 75344.06301 | J13: 2636219.749 | K13: =SUM(D13:J13) -> 245917691.9
B14: % Change | D14: =D12/D13-1 -> -0.007515481063 | E14: 0.03883504979 | F14: -0.238090064 | G14: -0.008606040766 | H14: 0.07358641366 | I14: 0.000355027038 | J14: 0.08050962858 | K14: 0.01437938574
B15: GROSS CLAIMS RATIO | C15: Semi Annual 2020 | D15: =D9/D12 -> 0.6146810178 | E15: =E9/E12 -> 0.5461362719 | F15: 0.253912141 | G15: 0.1291608379 | H15: 0.1800963878 | I15: 0.08002732364 | J15: -0.3872343323 | K15: 0.4312646633
C16: Semi annual 2019 | D16: 0.7975734907 | E16: 0.6829218445 | F16: 0.1040574821 | G16: 0.2826066619 | H16: 0.3100135727 | I16: 5.229600549 | J16: 0.2539316157 | K16: 0.5909259169
B18: Σημειώσεις:
B19: 1. Τα πιο πάνω δεδομένα αφορούν μόνο τις εργασίες των εταιρειών-μελών του ΣΑΕΚ στην εγχώρια αγορά. Οι εταιρείες-μέλη του ΣΑΕΚ
B20: αντιπροσωπεύουν περίπου το 99% των συνολικών ασφαλίστρων στην εγχώρια αγορά.
B21: 2. Σημειώνεται ότι από τον πιο πάνω πίνακα απουσιάζουν τα στοιχεία που αφορούν την εταιρεία-μέλος GAN DIRECT.
B23: Notes:
B24: 1. The above data reflects to the local insurance business by IAC member firms. IAC members firms represent approx 99% of the local GWP.
B25: 2. Please note that the above table does not include data for the member firm GAN DIRECT.
B34: NON LIFE NET CLAIMS INCURRED
D36: A&H | E36: MOTOR | F36: MAT | G36: FIRE | H36: LIABILITY | I36: CREDIT | J36: MISC | K36: TOTAL
B37: NET CLAIMS INCURED | C37: Semi Annual 2020 | D37: 29844482.11 | E37: 44932247.15 | F37: 256385.5551 | G37: 3681901.386 | H37: 3892107.498 | I37: 3691.554381 | J37: -128809.7544 | K37: =SUM(D37:J37) -> 82482005.5
C38: Semi annual 2019 | D38: 42478022.08 | E38: 53086265.22 | F38: 141109.7262 | G38: 9177579.821 | H38: 5501655.873 | I38: 33478.43333 | J38: 196278.4303 | K38: =SUM(D38:J38) -> 110614389.6
B39: % Change | D39: =D37/D38-1 -> -0.2974135648 | E39: -0.1535993921 | F39: 0.8169233409 | G39: -0.598815651 | H39: -0.2925570795 | I39: -0.8897333593 | J39: -1.656260366 | K39: -0.2543284304
B40: NET PREMIUMS EARNED | C40: Semi Annual 2020 | D40: 49579451.38 | E40: 79103670.7 | F40: 845160.5988 | G40: 20739402.68 | H40: 16019489.48 | I40: 39351.06096 | J40: 678477.7471 | K40: =SUM(D40:J40) -> 167005003.7
C41: Semi annual 2019 | D41: 49207094.38 | E41: 77692884.22 | F41: 991054.0402 | G41: 22918424.53 | H41: 16070817.63 | I41: 39863.98707 | J41: 669456.5459 | K41: =SUM(D41:J41) -> 167589595.3
B42: % Change | D42: =D40/D41-1 -> 0.007567140576 | E42: 0.01815850317 | F42: -0.1472103796 | G42: -0.09507729643 | H42: -0.003193872615 | I42: -0.01286690442 | J42: 0.01347540966 | K42: -0.003488233664
B43: NET CLAIMS RATIO | C43: Semi Annual 2020 | D43: =D37/D40 -> 0.6019526492 | E43: 0.5680172203 | F43: 0.3033572027 | G43: 0.1775316986 | H43: 0.2429607699 | I43: 0.09381079673 | J43: -0.1898511115 | K43: 0.4938894266
C44: Semi annual 2019 | D44: 0.8632499564 | E44: 0.6832834918 | F44: 0.1423834831 | G44: 0.4004454936 | H44: 0.3423382681 | I44: 0.8398164808 | J44: 0.2931906955 | K44: 0.6600313663
B46: Σημειώσεις:
B47: 1. Τα πιο πάνω δεδομένα αφορούν μόνο τις εργασίες των εταιρειών-μελών του ΣΑΕΚ στην εγχώρια αγορά. Οι εταιρείες-μέλη του ΣΑΕΚ
B48: αντιπροσωπεύουν περίπου το 99% των συνολικών ασφαλίστρων στην εγχώρια αγορά.
B49: 2. Σημειώνεται ότι από τον πιο πάνω πίνακα απουσιάζουν τα στοιχεία που αφορούν την εταιρεία-μέλος GAN DIRECT.
B51: Notes:
B52: 1. The above data reflects to the local insurance business by IAC member firms. IAC members firms represent approx 99% of the local GWP.
B53: 2. Please note that the above table does not include data for the member firm GAN DIRECT.

Sheet NL Expenses
B6: NON LIFE EXPENSES
E8: A&H | F8: MOTOR | G8: MAT | H8: FIRE | I8: LIABILITY | J8: CREDIT | K8: MISC | L8: TOTAL
B9: Maintainance/Renewal | D9: Semi Annual 2020 | E9: 4831559.49 | F9: 11388193.85 | G9: 266819.7999 | H9: 4530236.583 | I9: 2561079.543 | J9: 30615.66393 | K9: 180206.0407 | L9: =SUM(E9:K9) -> 23788710.97
D10: Semi Annual 2019 | E10: 5398826.415 | F10: 9945151.933 | G10: 230122.8882 | H10: 3222378.362 | I10: 2292456.311 | J10: 26679.50306 | K10: 166690.1622 | L10: =SUM(E10:K10) -> 21282305.57
B11: % Change | E11: =E9/E10-1 -> -0.1050722661 | F11: =F9/F10-1 -> 0.1451000378 | G11: 0.1594665875 | H11: 0.4058673669 | I11: 0.1171770344 | J11: 0.1475350145 | K11: 0.08108384045 | L11: 0.1177694489
B12: Commissions & other Acq. | D12: Semi Annual 2020 | E12: 11579334.66 | F12: 23886768.56 | G12: 387071.2487 | H12: 10630668.52 | I12: 4960000.335 | J12: 27127.85096 | K12: 1265868.404 | L12: =SUM(E12:K12) -> 52736839.59
D13: Semi Annual 2019 | E13: 12091220.45 | F13: 23946940.82 | G13: 360459.31 | H13: 11573644.21 | I13: 4643474.906 | J13: 28060.32563 | K13: 1271515.793 | L13: =SUM(E13:K13) -> 53915315.82
B14: % Change | E14: =E12/E13-1 -> -0.04233532821 | F14: -0.00251273284 | G14: 0.07382785782 | H14: -0.08147612532 | I14: 0.06816563796 | J14: -0.03323107067 | K14: -0.004441462262 | L14: -0.02185791208
B15: Reins. Commissions & Profit Commissions | D15: Semi Annual 2020 | E15: 6131975.391 | F15: 1040975.07 | G15: 331989.9411 | H15: 9145721.393 | I15: 2311544.58 | J15: 9209.53 | K15: 424641.2152 | L15: =SUM(E15:K15) -> 19396057.12
D16: Semi Annual 2019 | E16: 6385150.752 | F16: 858763.09 | G16: 267055.4282 | H16: 7940276.968 | I16: 2170091.87 | J16: 10034.16 | K16: 353781.8517 | L16: =SUM(E16:K16) -> 17985154.12
B17: % Change | E17: =E15/E16-1 -> -0.03965064743 | F17: 0.2121795663 | G17: 0.2431499456 | H17: 0.1518139015 | I17: 0.06518282104 | J17: -0.08218226538 | K17: 0.2002911204 | L17: 0.07844820183
B18: GROSS Expense Ratio | D18: Semi Annual 2020 | E18: =E9/'NL Claims'!D12 -> 0.05996679977 | F18: =F9/'NL Claims'!E12 -> 0.1310039704 | G18: =G9/'NL Claims'!F12 -> 0.153440012 | H18: =H9/'NL Claims'!G12 -> 0.08595515428 | I18: =I9/'NL Claims'!H12 -> 0.1041694097 | J18: =J9/'NL Claims'!I12 -> 0.406200531 | K18: =K9/'NL Claims'!J12 -> 0.06326435643 | L18: =L9/'NL Claims'!K12 -> 0.09536317918
D19: Semi Annual 2019 | E19: =E10/'NL Claims'!D13 -> 0.06650382837 | F19: =F10/'NL Claims'!E13 -> 0.1188468357 | G19: =G10/'NL Claims'!F13 -> 0.1008286664 | H19: =H10/'NL Claims'!G13 -> 0.06061412529 | I19: =I10/'NL Claims'!H13 -> 0.1001048711 | J19: =J10/'NL Claims'!I13 -> 0.3541022609 | K19: =K10/'NL Claims'!J13 -> 0.0632307539 | L19: =L10/'NL Claims'!K13 -> 0.08654239317
B21: GROSS Acquisition Cost Ratio | D21: Semi Annual 2020 | E21: =E12/'NL Claims'!D12 -> 0.1437166705 | F21: =F12/'NL Claims'!E12 -> 0.2747811954 | G21: =G12/'NL Claims'!F12 -> 0.22259299 | H21: =H12/'NL Claims'!G12 -> 0.2017026564 | I21: =I12/'NL Claims'!H12 -> 0.2017431705 | J21: =J12/'NL Claims'!I12 -> 0.3599251511 | K21: =K12/'NL Claims'!J12 -> 0.4444043583 | L21: =L12/'NL Claims'!K12 -> 0.2114092137
D22: Semi Annual 2019 | E22: =E13/'NL Claims'!D13 -> 0.1489420825 | F22: =F13/'NL Claims'!E13 -> 0.2861714091 | G22: =G13/'NL Claims'!F13 -> 0.1579357525 | H22: =H13/'NL Claims'!G13 -> 0.2177045155 | I22: =I13/'NL Claims'!H13 -> 0.202766986 | J22: =J13/'NL Claims'!I13 -> 0.3724291537 | K22: =K13/'NL Claims'!J13 -> 0.4823254183 | L22: =L13/'NL Claims'!K13 -> 0.2192413055
B24: NET Expense Ratio | D24: Semi Annual 2020 | E24: =E9/'NL Claims'!D40 -> 0.09745084617 | F24: =F9/'NL Claims'!E40 -> 0.1439654286 | G24: =G9/'NL Claims'!F40 -> 0.315703075 | H24: =H9/'NL Claims'!G40 -> 0.2184362131 | I24: =I9/'NL Claims'!H40 -> 0.1598727317 | J24: =J9/'NL Claims'!I40 -> 0.7780136846 | K24: =K9/'NL Claims'!J40 -> 0.2656034652 | L24: =L9/'NL Claims'!K40 -> 0.1424431032
D25: Semi Annual 2019 | E25: =E10/'NL Claims'!D41 -> 0.1097164237 | F25: =F10/'NL Claims'!E41 -> 0.1280059562 | G25: =G10/'NL Claims'!F41 -> 0.2322001414 | H25: =H10/'NL Claims'!G41 -> 0.1406020889 | I25: =I10/'NL Claims'!H41 -> 0.1426471487 | J25: =J10/'NL Claims'!I41 -> 0.669263288 | K25: =K10/'NL Claims'!J41 -> 0.2489932517 | L25: =L10/'NL Claims'!K41 -> 0.1269906138
B27: NET Acquisition Cost Ratio | D27: Semi Annual 2020 | E27: =(E12-E15)/'NL Claims'!D40 -> 0.10987131 | F27: =(F12-F15)/'NL Claims'!E40 -> 0.2888082599 | G27: =(G12-G15)/'NL Claims'!F40 -> 0.06517259294 | H27: =(H12-H15)/'NL Claims'!G40 -> 0.07160028442 | I27: =(I12-I15)/'NL Claims'!H40 -> 0.165327101 | J27: =(J12-J15)/'NL Claims'!I40 -> 0.4553453078 | K27: =(K12-K15)/'NL Claims'!J40 -> 1.239874399 | L27: =(L12-L15)/'NL Claims'!K40 -> 0.1996394224
D28: Semi Annual 2019 | E28: =(E13-E16)/'NL Claims'!D41 -> 0.1159603055 | F28: =(F13-F16)/'NL Claims'!E41 -> 0.2971723597 | G28: =(G13-G16)/'NL Claims'!F41 -> 0.09424701181 | H28: =(H13-H16)/'NL Claims'!G41 -> 0.1585347735 | I28: =(I13-I16)/'NL Claims'!H41 -> 0.1539052395 | J28: =(J13-J16)/'NL Claims'!I41 -> 0.4521917388 | K28: =(K13-K16)/'NL Claims'!J41 -> 1.370864095 | L28: =(L13-L16)/'NL Claims'!K41 -> 0.2143937494
B30: Σημειώσεις:
B31: 1. Τα πιο πάνω δεδομένα αφορούν μόνο τις εργασίες των εταιρειών-μελών του ΣΑΕΚ στην εγχώρια αγορά. Οι εταιρείες-μέλη του ΣΑΕΚ
B32: αντιπροσωπεύουν περίπου το 99% των συνολικών ασφαλίστρων στην εγχώρια αγορά.
B33: 2. Σημειώνεται ότι από τον πιο πάνω πίνακα απουσιάζουν τα στοιχεία που αφορούν την εταιρεία-μέλος GAN DIRECT.
B35: Notes:
B36: 1. The above data reflects to the local insurance business by IAC member firms. IAC members firms represent approx 99% of the local GWP.
B37: 2. Please note that the above table does not include data for the member firm GAN DIRECT.

Sheet NL Technical Accounts
B7: NON LIFE TECHNICAL ACCOUNTS
D10: A&H | E10: MOTOR | F10: MAT | G10: FIRE | H10: LIABILITY | I10: CREDIT | J10: MISC | K10: Semi Annual 2020 | L10: Semi Annual 2019 | M10: % Change
B11: Premiums
B12: Gross Written Premiums | D12: 79585438.98 | E12: 90960883.37 | F12: 1861692.953 | G12: 55490603.58 | H12: 27600238.62 | I12: 72044.83 | J12: 3484117.25 | K12: =SUM(D12:J12) -> 259055019.6 | L12: 260340265.6 | M12: =K12/L12-1 -> -0.00493679305
B13: Gross Premiums earned | D13: 80570574.2 | E13: 86930142.82 | F13: 1738919.31 | G13: 52704653.04 | H13: 24585716.2 | I13: 75370.81219 | J13: 2848460.822 | K13: =SUM(D13:J13) -> 249453837.2 | L13: 245392758.6 | M13: =K13/L13-1 -> 0.01654930076
B14: Reinsurance premiums | D14: 31673318.6 | E14: 8369760.988 | F14: 960217.3143 | G14: 34622855.26 | H14: 10097563.49 | I14: 25639.6 | J14: 2796355.256 | K14: =SUM(D14:J14) -> 88545710.52 | L14: 89343047.57 | M14: -0.008924444369
B15: Net Written Premiums | D15: 47912120.38 | E15: 82591122.38 | F15: 901475.6384 | G15: 20867748.32 | H15: 17502675.12 | I15: 46405.23 | J15: 687761.9938 | K15: =SUM(D15:J15) -> 170509309.1 | L15: 170997218 | M15: -0.002853315169
B16: Net Premiums earned | D16: 49579451.38 | E16: 79103670.7 | F16: 845160.5988 | G16: 20739402.68 | H16: 16019489.48 | I16: 39351.06096 | J16: 678477.7471 | K16: =SUM(D16:J16) -> 167005003.7 | L16: 167589595.3 | M16: -0.003488233664
B17: Claims
B18: Gross Claims incured | D18: 49525202.55 | E18: 47475704.12 | F18: 441532.7251 | G18: 6807377.146 | H18: 4427798.678 | I18: 6031.724381 | J18: -1103021.824 | K18: =SUM(D18:J18) -> 107580625.1 | L18: 145319137.5 | M18: -0.2596940297
B19: Net Claims Incurred | D19: 29844482.11 | E19: 44932247.15 | F19: 256385.5551 | G19: 3681901.386 | H19: 3892107.498 | I19: 3691.554381 | J19: -128809.7544 | K19: =SUM(D19:J19) -> 82482005.5 | L19: 110614389.6 | M19: -0.2543284304
B20: Expenses
B21: Operating Expenses | D21: 4831559.49 | E21: 11388193.85 | F21: 266819.7999 | G21: 4530236.583 | H21: 2561079.543 | I21: 30615.66393 | J21: 180206.0407 | K21: =SUM(D21:J21) -> 23788710.97 | L21: 21282305.57 | M21: 0.1177694489
B22: Commission Payable & Acquisition costs | D22: 11579334.66 | E22: 23886768.56 | F22: 387071.2487 | G22: 10630668.52 | H22: 4960000.335 | I22: 27127.85096 | J22: 1265868.404 | K22: =SUM(D22:J22) -> 52736839.59 | L22: 53915315.82 | M22: -0.02185791208
B23: Total Expenses | D23: 16410894.15 | E23: 35274962.41 | F23: 653891.0487 | G23: 15160905.11 | H23: 7521079.879 | I23: 57743.5149 | J23: 1446074.445 | K23: =SUM(D23:J23) -> 76525550.56 | L23: =L22+L21 -> 75197621.39 | M23: 0.0176591911
B24: Reinsurance Commissions and profit participations | D24: 6131975.391 | E24: 1040975.07 | F24: 331989.9411 | G24: 9145721.393 | H24: 2311544.58 | I24: 9209.53 | J24: 424641.2152 | K24: =SUM(D24:J24) -> 19396057.12 | L24: 17985154.12 | M24: 0.07844820183
B25: Other Income
B26: Policy Fees | D26: 657561.083 | E26: 6746206.723 | F26: 43063.93014 | G26: 2441527.793 | H26: 584586.9882 | I26: 1091.650848 | J26: 34819.24181 | K26: =SUM(D26:J26) -> 10508857.41 | L26: 10320109.18 | M26: 0.01828936355
B27: Other Expenses
B28: Underwriting Results Semi Annual 2020 | D28: =D16-D19-D23+D24+D25+D26+D27 -> 10113611.6 | E28: 6683642.931 | F28: 309937.8662 | G28: 13483845.38 | H28: 7502433.673 | I28: -11782.82747 | J28: -179326.4862 | K28: 37902362.13 | L28: 10082847.65 | M28: 2.759093009
B29: Underwriting Results Semi Annual 2019 | D29: -3687429.069 | E29: -1706601.317 | F29: -112760.414 | G29: 9824709.034 | H29: 6379134.368 | I29: -37274.18012 | J29: -576930.7684
B32: FINANCIAL INDICATORS | C32: A & H | E32: MOTOR | G32: MAT | I32: FIRE | K32: LIABILITY | M32: CREDIT | O32: OTHER | Q32: TOTAL
C34: Semi Annual 2020 | D34: Semi Annual 2019 | E34: Semi Annual 2020 | F34: Semi Annual 2019 | G34: Semi Annual 2020 | H34: Semi Annual 2019 | I34: Semi Annual 2020 | J34: Semi Annual 2019 | K34: Semi Annual 2020 | L34: Semi Annual 2019 | M34: Semi Annual 2020 | N34: Semi Annual 2019 | O34: Semi Annual 2020 | P34: Semi Annual 2019 | Q34: Semi Annual 2020 | R34: Semi Annual 2019
B35: Gross Claims ratio | C35: =D18/D13 -> 0.6146810178 | D35: 0.7975734907 | E35: =E18/E13 -> 0.5461362719 | F35: 0.6829218445 | G35: =F18/F13 -> 0.253912141 | H35: 0.9477872879 | I35: =G18/G13 -> 0.1291608379 | J35: 0.2826066619 | K35: =H18/H13 -> 0.1800963878 | L35: 0.3100135727 | M35: =I18/I13 -> 0.08002732364 | N35: 5.229600549 | O35: =J18/J13 -> -0.3872343323 | P35: 0.2539316157 | Q35: =K18/K13 -> 0.4312646633 | R35: =L18/L13 -> 0.5921899992
B36: Gross Acquisition Cost Ratio | C36: =D22/D13 -> 0.1437166705 | D36: 0.1489420825 | E36: =E22/E13 -> 0.2747811954 | F36: 0.2861714091 | G36: =F22/F13 -> 0.22259299 | H36: 0.1158107824 | I36: =G22/G13 -> 0.2017026564 | J36: 0.2177045155 | K36: =H22/H13 -> 0.2017431705 | L36: 0.202766986 | M36: =I22/I13 -> 0.3599251511 | N36: 0.3724291537 | O36: =J22/J13 -> 0.4444043583 | P36: 0.4823254183 | Q36: =K22/K13 -> 0.2114092137 | R36: =L22/L13 -> 0.2197102967
B37: Gross Expense Ratio | C37: =D21/D13 -> 0.05996679977 | D37: 0.06650382837 | E37: =E21/E13 -> 0.1310039704 | F37: 0.1188468357 | G37: =F21/F13 -> 0.153440012 | H37: 0.02673904234 | I37: =G21/G13 -> 0.08595515428 | J37: 0.06061412529 | K37: =H21/H13 -> 0.1041694097 | L37: 0.1001048711 | M37: =I21/I13 -> 0.406200531 | N37: 0.3541022609 | O37: =J21/J13 -> 0.06326435643 | P37: 0.0632307539 | Q37: =K21/K13 -> 0.09536317918 | R37: =L21/L13 -> 0.08672752078
B38: Gross Combined Ratio | C38: =C35+C36+C37 -> 0.818364488 | D38: 1.013019402 | E38: =E35+E36+E37 -> 0.9519214377 | F38: 1.087940089 | G38: =G35+G36+G37 -> 0.6299451431 | H38: 1.090337113 | I38: =I35+I36+I37 -> 0.4168186485 | J38: 0.5609253027 | K38: =K37+K36+K35 -> 0.486008968 | L38: 0.6128854298 | M38: =M37+M36+M35 -> 0.8461530057 | N38: 5.956131964 | O38: =O37+O36+O35 -> 0.1204343825 | P38: 0.7994877879 | Q38: =Q37+Q36+Q35 -> 0.7380370563 | R38: =R37+R36+R35 -> 0.8986278168
B39: Net Claims Ratio | C39: =D19/D16 -> 0.6019526492 | D39: 0.8632499564 | E39: =E19/E16 -> 0.5680172203 | F39: 0.6832834918 | G39: =F19/F16 -> 0.3033572027 | H39: 0.8730594376 | I39: =G19/G16 -> 0.1775316986 | J39: 0.4004454936 | K39: =H19/H16 -> 0.2429607699 | L39: 0.3423382681 | M39: =I19/I16 -> 0.09381079673 | N39: 0.8398164808 | O39: =J19/J16 -> -0.1898511115 | P39: 0.2931906955 | Q39: =K19/K16 -> 0.4938894266 | R39: =L19/L16 -> 0.6600313663
B40: Net Acquisition Cost Ratio | C40: =(D22-D24)/D16 -> 0.10987131 | D40: 0.1159603055 | E40: =(E22-E24)/E16 -> 0.2888082599 | F40: 0.2971723597 | G40: =(F22-F24)/F16 -> 0.06517259294 | H40: 0.1152979018 | I40: =(G22-G24)/G16 -> 0.07160028442 | J40: 0.1585347735 | K40: =(H22-H24)/H16 -> 0.165327101 | L40: 0.1539052395 | M40: =(I22-I24)/I16 -> 0.4553453078 | N40: 0.4521917388 | O40: =(J22-J24)/J16 -> 1.239874399 | P40: 1.370864095 | Q40: =(K22-K24)/K16 -> 0.1996394224 | R40: =(L22-L24)/L16 -> 0.2143937494
B41: Net Expense Ratio | C41: =D21/D16 -> 0.09745084617 | D41: 0.1097164237 | E41: =E21/E16 -> 0.1439654286 | F41: 0.1280059562 | G41: =F21/F16 -> 0.315703075 | H41: 0.03636402158 | I41: =G21/G16 -> 0.2184362131 | J41: 0.1406020889 | K41: =H21/H16 -> 0.1598727317 | L41: 0.1426471487 | M41: =I21/I16 -> 0.7780136846 | N41: 0.669263288 | O41: =J21/J16 -> 0.2656034652 | P41: 0.2489932517 | Q41: =K21/K16 -> 0.1424431032 | R41: =L21/L16 -> 0.1269906138
B42: Net Combined Ratio | C42: =C39+C40+C41 -> 0.8092748054 | D42: 1.088926686 | E42: =E39+E40+E41 -> 1.000790909 | F42: 1.108461808 | G42: =G39+G40+G41 -> 0.6842328707 | H42: 1.024721361 | I42: =I39+I40+I41 -> 0.4675681961 | J42: 0.699582356 | K42: =K41+K40+K39 -> 0.5681606026 | L42: 0.6388906563 | M42: =M41+M40+M39 -> 1.327169789 | N42: 1.961271508 | O42: =O41+O40+O39 -> 1.315626753 | P42: 1.913048042 | Q42: =Q41+Q40+Q39 -> 0.8359719522 | R42: =R41+R40+R39 -> 1.001415729
B44: Σημειώσεις:
B45: 1. Τα πιο πάνω δεδομένα αφορούν μόνο τις εργασίες των εταιρειών-μελών του ΣΑΕΚ στην εγχώρια αγορά. Οι εταιρείες-μέλη του ΣΑΕΚ
B46: αντιπροσωπεύουν περίπου το 99% των συνολικών ασφαλίστρων στην εγχώρια αγορά.
B47: 2. Σημειώνεται ότι από τον πιο πάνω πίνακα απουσιάζουν τα στοιχεία που αφορούν την εταιρεία-μέλος GAN DIRECT.
B49: Notes:
B50: 1. The above data reflects to the local insurance business by IAC member firms. IAC members firms represent approx 99% of the local GWP.
B51: 2. Please note that the above table does not include data for the member firm GAN DIRECT.

Sheet NL Frequencies
B5: NON LIFE TECHNICAL INFORMATION
C7: A&H | D7: MOTOR | E7: M.A.T. | F7: FIRE | G7: LIABILITY | H7: CREDIT | I7: OTHER | J7: Semi Annual 2020 | K7: Semi Annual 2019 | L7: % Change
B8: No of Claims Reported | C8: 114483 | D8: 28195 | E8: 129 | F8: 4060 | G8: 960 | H8: 90 | I8: 134 | J8: =SUM(C8:I8) -> 148051 | K8: 289852.803 | L8: =J8/K8-1 -> -0.4892200508
B9: No of Policies in-force at 01/01 | C9: 172785 | D9: 592820 | E9: 6251 | F9: 234595 | G9: 67733 | H9: 94 | I9: 2661 | J9: =SUM(C9:I9) -> 1076939 | K9: 940377 | L9: =J9/K9-1 -> 0.1452204807
B10: No of Policies in-force at 31/12 | C10: 168373 | D10: 601026 | E10: 6281 | F10: 229341 | G10: 62432 | H10: 88 | I10: 2761 | J10: =SUM(C10:I10) -> 1070302 | K10: 960689 | L10: =J10/K10-1 -> 0.114098319
B11: Premiums earned | C11: 80570574.2 | D11: 86930142.82 | E11: 1738919.31 | F11: 52704653.04 | G11: 24585716.2 | H11: 75370.81219 | I11: 2848460.822 | J11: =SUM(C11:I11) -> 249453837.2 | K11: 252241625.9 | L11: =J11/K11-1 -> -0.01105205667
B12: Average Premium per Policy | C12: =C11/AVERAGE(C9:C10) -> 472.3358338 | D12: =D11/AVERAGE(D9:D10) -> 145.6304127 | E12: 277.516647 | F12: 227.2065675 | G12: 377.7623201 | H12: 828.2506834 | I12: 1050.70484 | J12: 232.3482434 | K12: 265.3686152 | L12: =J12/K12-1 -> -0.1244320918
B13: Claim Frequency | D13: =D8/AVERAGE(D9:D10) -> 0.04723389784 | E13: =E8/AVERAGE(E9:E10) -> 0.02058729652 | F13: 0.01750241413 | G13: 0.01475050897 | H13: 0.989010989 | I13: 0.04942825526 | J13: 0.1378988199 | K13: 0.3049371279
B16: Σημειώσεις:
B17: 1. Τα πιο πάνω δεδομένα αφορούν μόνο τις εργασίες των εταιρειών-μελών του ΣΑΕΚ στην εγχώρια αγορά. Οι εταιρείες-μέλη του ΣΑΕΚ
B18: αντιπροσωπεύουν περίπου το 99% των συνολικών ασφαλίστρων στην εγχώρια αγορά.
B19: 2. Σημειώνεται ότι από τον πιο πάνω πίνακα απουσιάζουν τα στοιχεία που αφορούν την εταιρεία-μέλος GAN DIRECT.
B21: Notes:
B22: 1. The above data reflects to the local insurance business by IAC member firms. IAC members firms represent approx 99% of the local GWP.
B23: 2. Please note that the above table does not include data for the member firm GAN DIRECT.

Sheet Int. Premiums
B6: INTERNATIONAL PREMIUMS
C8: LIFE | D8: A&H | E8: MOTOR | F8: MAT | G8: FIRE | H8: LIABILITY | I8: CREDIT | J8: MISC | K8: TOTAL Semi Annual 2020 | L8: TOTAL Semi Annual 2019 | M8: % Growth
B10: AMERICAN HELLENIC HULL | C10: 0 | D10: 0 | E10: 0 | F10: 8547746.026 | G10: 0 | H10: 0 | I10: 0 | J10: 0 | K10: =SUM(C10:J10) -> 8547746.026 | L10: 15234818.62 | M10: =K10/L10-1 -> -0.4389335222
B11: ANCORIA | C11: 958201.3859 | D11: 0 | E11: 0 | F11: 0 | G11: 0 | H11: 0 | I11: 0 | J11: 0 | K11: =SUM(C11:J11) -> 958201.3859 | L11: 1586000 | M11: =K11/L11-1 -> -0.3958377138
B12: CNP ASFALISTIKI | C12: 0 | D12: 0 | E12: 0 | F12: 0 | G12: 26499.81 | H12: 5993.93 | I12: 0 | J12: 1121.59 | K12: 33615.33 | L12: 28856.92 | M12: 0.1648966695
B13: EUROLIFE | C13: 475554.74 | D13: 0 | E13: 0 | F13: 0 | G13: 0 | H13: 0 | I13: 0 | J13: 0 | K13: 475554.74 | L13: 515276.42 | M13: -0.07708809963
B14: MEDLIFE | C14: 20750825.15 | D14: 0 | E14: 0 | F14: 0 | G14: 0 | H14: 0 | I14: 0 | J14: 0 | K14: 20750825.15 | L14: 18466837.73 | M14: 0.1236804835
B15: PRIME | C15: 0 | D15: 957043.3635 | E15: 1481002.803 | F15: 23194.4985 | G15: 213186.0341 | H15: 0 | I15: 0 | J15: 33800.7412 | K15: 2708227.44 | L15: 10143389.83 | M15: -0.7330056831
B16: TOTAL | C16: =SUM(C10:C15) -> 22184581.28 | D16: 957043.3635 | E16: 1481002.803 | F16: 8570940.525 | G16: 239685.8441 | H16: 5993.93 | I16: 0 | J16: 34922.3312 | K16: 33474170.07 | L16: =SUM(L10:L15) -> 45975179.53 | M16: =K16/L16-1 -> -0.2719077899
B19: Σημείωση:
B20: Τα πιο πάνω δεδομένα αφορούν μόνο τις εργασίες των εταιρειών-μελών του ΣΑΕΚ στο Εξωτερικό
B22: Note:
B23: The above data reflects to the International insurance business of IAC member firms.
